fUSD/lending_fUSD_20240629
["ID","MTS","AMOUNT","RATE_DAILY","PERIOD"]
[330650359,1719688244544,-7929.21,0.00013784,3]
[330650360,1719688244553,-500.0,0.00013784,3]
[330650361,1719688244563,-500.0,0.00013784,3]
[330650362,1719688244573,-500.0,0.00013784,3]
[330650363,1719688244583,-624.37,0.00013784,3]
[330650364,1719688244595,-585.37,0.00013784,3]
[330650365,1719688244604,-500.0,0.00013784,3]
[330650366,1719688244615,-2104.92,0.00013784,3]
[330650367,1719688244624,-568.33,0.00013784,3]
[330650368,1719688244640,-500.0,0.00013784,3]
[330650369,1719688244652,-608.79,0.00013784,3]
[330650370,1719688244662,-500.0,0.00013784,3]
[330650371,1719688244672,-982.24,0.00013784,3]
[330650372,1719688244685,-624.43,0.00013784,3]
[330650373,1719688244695,-500.0,0.00013784,3]
[330650374,1719688244705,-1138.07,0.00013784,3]
[330650375,1719688244715,-500.0,0.00013784,3]
[330650376,1719688244727,-1411.54,0.00013784,3]
[330650377,1719688244736,-1324.82,0.00013784,3]
[330650378,1719688244747,-500.0,0.00013784,3]
[330650379,1719688245080,-501.23269882,0.00013784,3]
[330650380,1719688245091,-4754.68,0.00013784,3]
[330650381,1719688245100,-500.0,0.00013784,3]
[330650382,1719688245110,-2099.92,0.00013784,3]
[330650383,1719688245120,-744.36,0.00013784,3]
[330650384,1719688245129,-500.0,0.00013784,3]
[330650385,1719688245139,-500.0,0.00013784,3]
[330650386,1719688245148,-500.0,0.00013784,3]
[330650387,1719688245157,-500.0,0.00013784,3]
[330650388,1719688245166,-500.0,0.00013784,3]
[330650389,1719688245176,-500.0,0.00013784,3]
[330650390,1719688245185,-500.0,0.00013784,3]
[330650391,1719688245195,-500.0,0.00013784,3]
[330650392,1719688245205,-1345.31,0.00013784,3]
[330650393,1719688245215,-950.33,0.00013784,3]
[330650394,1719688245224,-616.73,0.00013784,3]
[330650395,1719688245234,-500.0,0.00013784,3]
[330650396,1719688245250,-1191.94,0.00013784,3]
[330650397,1719688245265,-500.0,0.00013784,3]
[330650398,1719688245277,-500.0,0.00013784,3]
[330650399,1719688245287,-500.0,0.00013784,3]
[330650400,1719688245297,-651.61,0.00013784,3]
[330650401,1719688245308,-500.0,0.00013784,3]
[330650402,1719688245318,-898.12,0.00013784,3]
[330650403,1719688245329,-6218.32,0.00013784,3]
[330650404,1719688245340,-562.48,0.00013784,3]
[330650405,1719688245350,-500.0,0.00013784,3]
[330650406,1719688245360,-500.0,0.00013784,3]
[330650407,1719688245370,-3548.88,0.00013784,3]
[330650408,1719688245381,-2354.57,0.00013784,3]
[330650409,1719688245391,-500.0,0.00013784,3]
[330650410,1719688245402,-500.0,0.00013784,3]
[330650411,1719688245412,-689.42,0.00013784,3]
[330650412,1719688245423,-500.0,0.00013784,3]
[330650413,1719688245433,-500.0,0.00013784,3]
[330650414,1719688245443,-691.67,0.00013784,3]
[330650415,1719688245454,-500.0,0.00013784,3]
[330650416,1719688245466,-1397.54,0.00013784,3]
[330650417,1719688245476,-500.0,0.00013784,3]
[330650418,1719688245486,-556.15,0.00013784,3]
[330650419,1719688245496,-500.0,0.00013784,3]
[330650420,1719688245506,-500.0,0.00013784,3]
[330650421,1719688245516,-2423.58,0.00013784,3]
[330650422,1719688245527,-596.48,0.00013784,3]
[330650423,1719688245538,-1031.53,0.00013784,3]
[330650424,1719688245548,-500.0,0.00013784,3]
[330650425,1719688245558,-689.86,0.00013784,3]
[330650426,1719688245568,-1732.57,0.00013784,3]
[330650427,1719688245578,-500.0,0.00013784,3]
[330650428,1719688245587,-982.02,0.00013784,3]
[330650429,1719688245597,-500.0,0.00013784,3]
[330650430,1719688245607,-716.02,0.00013784,3]
[330650431,1719688245617,-500.0,0.00013784,3]
[330650432,1719688245627,-500.0,0.00013784,3]
[330650433,1719688245641,-598.61,0.00013784,3]
[330650434,1719688245651,-573.98,0.00013784,3]
[330650435,1719688245661,-500.0,0.00013784,3]
[330650436,1719688245671,-500.0,0.00013784,3]
[330650437,1719688245682,-500.0,0.00013784,3]
[330650438,1719688245691,-543.69,0.00013784,3]
[330650439,1719688245701,-500.0,0.00013784,3]
[330650440,1719688245713,-500.0,0.00013784,3]
[330650441,1719688245723,-500.0,0.00013784,3]
[330650442,1719688245733,-1090.08,0.00013784,3]
[330650443,1719688245743,-551.81,0.00013784,3]
[330650444,1719688245754,-576.85,0.00013784,3]
[330650445,1719688245764,-1152.01,0.00013784,3]
[330650446,1719688245774,-500.0,0.00013784,3]
[330650447,1719688245784,-500.0,0.00013784,3]
[330650448,1719688245794,-1476.06,0.00013784,3]
[330650449,1719688245804,-870.84,0.00013784,3]
[330650450,1719688245814,-500.0,0.00013784,3]
[330650451,1719688245824,-1014.45,0.00013784,3]
[330650452,1719688245834,-1080.09,0.00013784,3]
[330650453,1719688245844,-2388.32,0.00013785,3]
[330650454,1719688245854,-2313.28,0.00013785,3]
[330650455,1719688245864,-1036.52,0.00013785,3]
[330650456,1719688245874,-2356.49,0.00013785,3]
[330650457,1719688245884,-3284.88,0.00013785,3]
[330650458,1719688245894,-7432.62,0.00013785,3]
[330650459,1719688245905,-4152.86,0.00013785,3]
[330650460,1719688245916,-6147.38,0.00013785,3]
[330650461,1719688245931,-5190.92,0.00013785,3]
[330650462,1719688245943,-6015.38,0.00013785,3]
[330650464,1719688245953,-3979.82,0.00013786,3]
[330650465,1719688245964,-2987.67,0.00013786,3]
[330650466,1719688245975,-1129.59,0.00013786,3]
[330650467,1719688245986,-3182.78,0.00013786,3]
[330650468,1719688245996,-500.0,0.00013786,3]
[330650470,1719688246008,-3957.69,0.00013786,3]
[330650472,1719688246019,-500.0,0.00013786,3]
[330650473,1719688246030,-706.42,0.00013786,3]
[330650474,1719688246041,-2210.07,0.00013786,3]
[330650475,1719688246051,-500.0,0.00013786,3]
[330650476,1719688246063,-500.0,0.00013786,3]
[330650477,1719688246074,-500.0,0.00013786,3]
[330650478,1719688246084,-2363.89,0.00013786,3]
[330650479,1719688246094,-817.93,0.00013786,3]
[330650480,1719688246104,-47565.87,0.00013786,3]
[330650481,1719688246115,-500.0,0.00013786,3]
[330650482,1719688246125,-1525.29,0.00013786,3]
[330650483,1719688246135,-545.0,0.00013786,3]
[330650484,1719688246146,-2320.64,0.00013786,3]
[330650485,1719688246156,-2862.07,0.00013786,3]
[330650486,1719688246166,-500.0,0.00013786,3]
[330650487,1719688246178,-500.0,0.00013786,3]
[330650488,1719688246190,-500.0,0.00013786,3]
[330650489,1719688246201,-3452.54,0.00013786,3]
[330650490,1719688246211,-687.59,0.00013786,3]
[330650491,1719688246222,-1715.98,0.00013786,3]
[330650492,1719688246232,-1933.1,0.00013786,3]
[330650493,1719688246243,-2332.82,0.00013786,3]
[330650494,1719688246253,-500.0,0.00013786,3]
[330650495,1719688246264,-6094.73,0.00013786,3]
[330650496,1719688246276,-2575.49,0.00013786,3]
[330650497,1719688246287,-3106.14,0.00013786,3]
[330650498,1719688246298,-1000.0,0.00013786,3]
[330650499,1719688246308,-2071.01,0.00013786,3]
[330650500,1719688246319,-1564.79,0.00013786,3]
[330650501,1719688246329,-1721.94,0.00013786,3]
[330650502,1719688246339,-6536.75,0.00013786,3]
[330650503,1719688246349,-500.0,0.00013786,2]
[330650504,1719688246359,-679.86,0.00013786,3]
[330650505,1719688246369,-912.24,0.00013786,3]
[330650506,1719688246380,-4738.77,0.00013786,3]
[330650507,1719688246390,-1781.82,0.00013786,3]
[330650508,1719688246402,-1242.64,0.00013786,3]
[330650509,1719688246413,-1515.45,0.00013786,3]
[330650510,1719688246424,-2261.21,0.00013786,3]
[330650511,1719688246434,-500.0,0.00013786,3]
[330650512,1719688246444,-2401.58,0.00013786,3]
[330650513,1719688246455,-500.0,0.00013786,3]
[330650514,1719688246465,-1486.67,0.00013786,3]
[330650515,1719688246476,-1893.42,0.00013786,3]
[330650516,1719688246486,-4095.95,0.00013786,3]
[330650517,1719688246496,-2162.42,0.00013786,3]
[330650518,1719688246507,-6960.42,0.00013786,3]
[330650519,1719688246518,-1349.42,0.00013786,3]
[330650520,1719688246530,-910.94,0.00013786,3]
[330650521,1719688246541,-622.23,0.00013786,3]
[330650522,1719688246551,-1833.13,0.00013786,3]
[330650523,1719688246561,-500.0,0.00013786,2]
[330650524,1719688246571,-2773.97,0.00013786,3]
[330650526,1719688246581,-500.0,0.00013786,3]
[330650528,1719688246590,-8910.77,0.00013786,3]
[330650529,1719688246601,-3242.79,0.00013786,3]
[330650530,1719688246611,-971.87,0.00013786,3]
[330650531,1719688246621,-900.74,0.00013786,3]
[330650532,1719688246631,-1697.27,0.00013786,3]
[330650533,1719688246646,-701.99,0.00013786,3]
[330650534,1719688246656,-1371.5,0.00013786,3]
[330650535,1719688246667,-500.0,0.00013786,3]
[330650536,1719688246677,-1333.03,0.00013786,3]
[330650537,1719688246686,-1358.14,0.00013786,3]
[330650538,1719688246697,-500.0,0.00013786,3]
[330650539,1719688246707,-1463.69,0.00013786,3]
[330650540,1719688246718,-939.21,0.00013786,3]
[330650541,1719688246728,-2266.46,0.00013786,3]
[330650542,1719688246739,-647.86,0.00013786,3]
[330650543,1719688246749,-1857.97,0.00013786,3]
[330650544,1719688246759,-1954.25,0.00013786,3]
[330650545,1719688246769,-181.04384057,0.00013786,2]
[330650546,1719688246783,-3623.63,0.00013786,3]
[330650547,1719688246793,-2115.94,0.00013786,3]
[330650548,1719688246803,-3466.35,0.00013786,3]
[330650549,1719688246813,-1046.94,0.00013786,3]
[330650550,1719688246823,-1671.15,0.00013786,3]
[330650551,1719688246833,-1763.87,0.00013786,3]
[330650552,1719688246843,-1549.03,0.00013786,3]
[330650553,1719688246854,-1902.7,0.00013786,3]
[330650554,1719688246864,-941.21,0.00013786,3]
[330650555,1719688246874,-1305.73,0.00013786,3]
[330650556,1719688246885,-500.0,0.00013787,3]
[330650557,1719688246894,-500.0,0.00013787,3]
[330650558,1719688246904,-921.32,0.00013787,3]
[330650559,1719688246914,-524.5,0.00013787,3]
[330650560,1719688246925,-500.0,0.00013787,3]
[330650561,1719688246934,-500.0,0.00013787,3]
[330650562,1719688246945,-500.0,0.00013787,3]
[330650563,1719688246955,-500.0,0.00013787,3]
[330650564,1719688246966,-500.0,0.00013787,3]
[330650565,1719688246977,-500.0,0.00013787,3]
[330650566,1719688246988,-500.0,0.00013787,3]
[330650567,1719688247000,-299.81066904,0.00013787,3]
[330650568,1719688247010,-639.2,0.00013787,3]
[330650569,1719688247021,-1375.11,0.00013787,3]
[330650570,1719688247030,-1130.96,0.00013787,3]
[330650571,1719688247043,-500.0,0.00013787,3]
[330650572,1719688247052,-633.88,0.00013787,3]
[330650573,1719688247066,-500.0,0.00013787,3]
[330650574,1719688247076,-1443.84,0.00013787,3]
[330650575,1719688247087,-500.0,0.00013787,3]
[330650576,1719688247098,-500.0,0.00013787,3]
[330650577,1719688247108,-500.0,0.00013787,3]
[330650578,1719688247118,-506.7,0.00013787,3]
[330650579,1719688247128,-1456.1,0.00013787,3]
[330650580,1719688247139,-500.0,0.00013787,3]
[330650581,1719688247149,-500.0,0.00013787,2]
[330650582,1719688247160,-500.0,0.00013787,3]
[330650583,1719688247171,-572.80169895,0.00013787,3]
[330650584,1719688247180,-500.0,0.00013787,3]
[330650585,1719688247190,-912.53,0.00013787,3]
[330650586,1719688247201,-500.0,0.00013787,3]
[330650587,1719688247211,-500.0,0.00013787,3]
[330650588,1719688247222,-500.0,0.00013787,3]
[330650589,1719688247232,-500.0,0.00013787,3]
[330650590,1719688247243,-500.0,0.00013787,3]
[330650591,1719688247253,-500.0,0.00013787,3]
[330650592,1719688247263,-500.66177449,0.00013787,3]
[330650593,1719688247274,-500.0,0.00013787,3]
[330650594,1719688247285,-500.0,0.00013787,3]
[330650595,1719688247295,-1159.35,0.00013787,3]
[330650596,1719688247306,-524.72,0.00013787,3]
[330650597,1719688247316,-500.0,0.00013787,3]
[330650598,1719688247330,-838.93,0.00013787,3]
[330650599,1719688247340,-500.0,0.00013787,3]
[330650600,1719688247350,-500.0,0.00013787,3]
[330650601,1719688247361,-756.66,0.00013787,3]
[330650602,1719688247371,-500.0,0.00013787,3]
[330650603,1719688247382,-500.0,0.00013787,3]
[330650604,1719688247392,-656.34,0.00013787,3]
[330650605,1719688247402,-500.0,0.00013787,3]
[330650606,1719688247412,-1025.07,0.00013787,3]
[330650607,1719688247422,-500.0,0.00013787,3]
[330650608,1719688247432,-517.02,0.00013787,3]
[330650609,1719688247442,-1434.78,0.00013787,3]
[330650610,1719688247455,-1238.26,0.00013787,3]
[330650611,1719688247466,-500.0,0.00013787,3]
[330650612,1719688247476,-1056.6,0.00013787,3]
[330650613,1719688247486,-500.0,0.00013787,3]
[330650614,1719688247497,-500.0,0.00013787,3]
[330650615,1719688247507,-1084.63,0.00013787,3]
[330650616,1719688247516,-196.24886245,0.00013787,3]
[330650617,1719688247526,-629.96,0.00013787,3]
[330650618,1719688247538,-589.39072104,0.00013787,3]
[330650619,1719688247548,-500.0,0.00013787,3]
[330650620,1719688247558,-500.0,0.00013787,3]
[330650621,1719688247568,-500.0,0.00013787,3]
[330650622,1719688247578,-500.0,0.00013787,3]
[330650623,1719688247588,-500.0,0.00013787,3]
[330650624,1719688247599,-500.0,0.00013787,3]
[330650625,1719688247608,-500.0,0.00013787,3]
[330650626,1719688247618,-500.0,0.00013787,3]
[330650627,1719688247628,-501.46,0.00013787,3]
[330650628,1719688247643,-500.0,0.00013787,3]
[330650629,1719688248056,-1465.97,0.00013787,3]
[330650630,1719688248093,-500.0,0.00013787,3]
[330650631,1719688248103,-500.0,0.00013787,3]
[330650632,1719688248113,-500.0,0.00013787,3]
[330650633,1719688248123,-500.0,0.00013787,3]
[330650634,1719688248132,-500.0,0.00013787,3]
[330650635,1719688248141,-500.0,0.00013787,3]
[330650636,1719688248151,-827.62,0.00013787,3]
[330650637,1719688248161,-419.13810928,0.00013787,3]
[330650638,1719688248170,-500.0,0.00013787,3]
[330650639,1719688248180,-1233.46,0.00013787,3]
[330650640,1719688248189,-500.0,0.00013787,3]
[330650641,1719688248199,-500.0,0.00013787,3]
[330650642,1719688248208,-500.0,0.00013787,3]
[330650643,1719688248218,-500.0,0.00013787,3]
[330650644,1719688248227,-1099.96,0.00013787,3]
[330650645,1719688248237,-500.0,0.00013787,3]
[330650646,1719688248246,-500.0,0.00013787,3]
[330650647,1719688248256,-500.0,0.00013787,3]
[330650648,1719688248265,-171.63155177,0.00013787,3]
[330650649,1719688248275,-500.0,0.00013787,3]
[330650650,1719688248284,-500.0,0.00013787,3]
[330650651,1719688248293,-1215.31,0.00013787,3]
[330650652,1719688248303,-500.0,0.00013787,3]
[330650653,1719688248312,-500.0,0.00013787,3]
[330650654,1719688248322,-500.0,0.00013787,3]
[330650655,1719688248332,-500.0,0.00013787,3]
[330650656,1719688248342,-615.45,0.00013787,3]
[330650657,1719688248351,-539.32,0.00013787,3]
[330650658,1719688248362,-500.0,0.00013787,3]
[330650659,1719688248371,-500.0,0.00013787,3]
[330650660,1719688248381,-500.0,0.00013787,3]
[330650661,1719688248391,-500.0,0.00013787,3]
[330650662,1719688248400,-632.41,0.00013787,3]
[330650663,1719688248411,-343.39160055,0.00013787,3]
[330650664,1719688248421,-500.0,0.00013787,3]
[330650665,1719688248431,-732.04,0.00013787,3]
[330650666,1719688248441,-500.0,0.00013787,3]
[330650667,1719688248450,-1368.38,0.00013787,3]
[330650668,1719688248460,-1031.07,0.00013787,3]
[330650669,1719688248469,-500.0,0.00013787,3]
[330650670,1719688248479,-500.0,0.00013787,3]
[330650671,1719688248489,-500.0,0.00013787,3]
[330650672,1719688248499,-805.19,0.00013787,3]
[330650673,1719688248508,-500.0,0.00013787,3]
[330650674,1719688248518,-405.62414804,0.00013787,3]
[330650675,1719688248581,-182.76585196,0.00013787,3]
[330650676,1719688248592,-500.0,0.00013787,3]
[330650677,1719688248602,-117.23414804,0.00013787,3]
[330650678,1719688250288,-437.64585196,0.00013787,3]
[330650679,1719688250298,-524.02,0.00013787,3]
[330650680,1719688250310,-598.44,0.00013787,3]
[330650681,1719688250319,-572.98,0.00013787,3]
[330650682,1719688250330,-500.0,0.00013787,3]
[330650683,1719688250341,-500.0,0.00013787,3]
[330650684,1719688250350,-500.0,0.00013787,3]
[330650685,1719688250360,-500.0,0.00013787,3]
[330650686,1719688250370,-500.0,0.00013787,3]
[330650687,1719688250380,-500.0,0.00013787,3]
[330650688,1719688250389,-500.0,0.00013787,3]
[330650689,1719688250399,-500.0,0.00013787,3]
[330650690,1719688250408,-270.91426293,0.00013787,3]
[330650703,1719688508361,684.0521415,0.00011098,2]
[330650704,1719688526578,1380.40369576,0.00011098,2]
[330650705,1719688559167,10000.0,0.00011098,2]
[330650706,1719688575183,411.47785028,0.00011098,2]
[330650707,1719688609480,512.19400641,0.00011098,2]
[330650708,1719688652455,155.26250993,0.00011098,2]
[330650711,1719688676190,393.68,0.00010787,2]
[330650712,1719688715449,155.0,0.00011098,2]
[330650713,1719688784327,5980.89757373,0.00011098,2]
[330650715,1719688978567,365.05601346,0.00011098,2]
[330650716,1719689025305,363.95360909,0.00011098,2]
[330650717,1719689036032,155.0,0.00011098,2]
[330650719,1719689067608,625.50090201,0.00011098,2]
[330650720,1719689099877,-163.73601725,0.00011197,2]
[330650721,1719689099901,-482.75596204,0.00011199,2]
[330650722,1719689099925,-155.0,0.00011199,2]
[330650723,1719689107972,-155.0,0.00012273,2]
[330650724,1719689107997,-900.0,0.00012506,2]
[330650725,1719689108024,-800.0,0.00012506,2]
[330650726,1719689108050,-500.0,0.00012506,2]
[330650727,1719689108082,-250.0,0.00012624,2]
[330650728,1719689108114,-183.24,0.00012624,2]
[330650729,1719689108142,-169.1,0.0001265,2]
[330650730,1719689108169,-300.0,0.00012729,2]
[330650731,1719689108192,-4658.03,0.0001273,2]
[330650732,1719689108218,-250.0,0.00012733,2]
[330650733,1719689108245,-1000.0,0.00012744,2]
[330650734,1719689108271,-393.68,0.00013051,2]
[330650735,1719689108295,-364.83083544,0.00013128,2]
[330650736,1719689108323,-1500.0,0.000133,4]
[330650737,1719689108350,-900.0,0.00013328,2]
[330650738,1719689108373,-800.0,0.00013328,2]
[330650739,1719689108407,-3100.0,0.000134,4]
[330650740,1719689108468,-200.0,0.000134,4]
[330650741,1719689108494,-4191.1213,0.00013488,2]
[330650742,1719689108523,-4600.0,0.000135,4]
[330650743,1719689108553,-500.0,0.000135,4]
[330650744,1719689108580,-499.99,0.000135,2]
[330650745,1719689108608,-299.99,0.000135,2]
[330650746,1719689108637,-5183.52588527,0.000136,4]
[330650749,1719689228616,354.31,0.00010837,2]
[330650750,1719689276598,5372.00267457,0.00011098,2]
[330650752,1719689348936,169.52855366,0.00011099,2]
[330650753,1719689403367,1000.89,0.00011098,2]
[330650754,1719689404103,625.50090201,0.00011098,2]
[330650755,1719689406291,205.7897499,0.00011097,2]
[330650767,1719689432824,2075.25412606,0.00011098,2]
[330650802,1719689439137,-650.91919934,0.00011197,2]
[330650805,1719689439148,-476.10316361,0.00011197,2]
[330650807,1719689439159,-163.58641568,0.00011197,2]
[330650809,1719689439170,-155.21845942,0.00011199,2]
[330650811,1719689439182,-313.84024762,0.00011199,2]
[330650812,1719689439193,-155.0,0.00011199,2]
[330650814,1719689439204,-157.85746719,0.00011199,2]
[330650816,1719689439215,-529.80766427,0.00011199,2]
[330650819,1719689439225,-189.23515969,0.00011199,2]
[330650821,1719689439236,-320.62309046,0.00011199,2]
[330650824,1719689439246,-800.0,0.00012506,2]
[330650826,1719689439256,-700.0,0.00012506,2]
[330650828,1719689439267,-1000.0,0.00012632,2]
[330650830,1719689439277,-250.0,0.00012755,2]
[330650832,1719689439287,-354.31,0.00013101,2]
[330650834,1719689439299,-1000.0,0.000133,4]
[330650836,1719689439310,-800.0,0.00013328,2]
[330650838,1719689439320,-700.0,0.00013328,2]
[330650840,1719689439330,-2100.0,0.000134,4]
[330650842,1719689439341,-438.1115069,0.00013453,2]
[330650844,1719689439351,-499.99,0.00013453,2]
[330650846,1719689439361,-3100.0,0.000135,4]
[330650848,1719689439372,-1000.0,0.000136,2]
[330650850,1719689439382,-4200.0,0.000136,4]
[330650852,1719689439394,-17759.11778684,0.0001365,2]
[330650854,1719689439404,-711.65913,0.0001365,2]
[330650856,1719689439414,-176.0776625,0.00013677,2]
[330650858,1719689439424,-1000.0,0.00013683,2]
[330650860,1719689439434,-7500.0,0.00013684,2]
[330650862,1719689439444,-1000.0,0.00013685,2]
[330650864,1719689439455,-150.0,0.00013685,2]
[330650866,1719689439466,-1206.9525,0.00013686,2]
[330650868,1719689439477,-80980.2567,0.00013686,2]
[330650870,1719689439487,-176.47864197,0.00013687,2]
[330650872,1719689439498,-171.84216993,0.00013687,2]
[330650874,1719689439508,-1414.56,0.00013698,3]
[330650876,1719689439518,-1082.52,0.00013698,3]
[330650878,1719689439528,-1699.53,0.00013698,3]
[330650880,1719689439539,-903.6,0.00013698,3]
[330650882,1719689439551,-500.0,0.00013698,3]
[330650884,1719689439562,-2317.93,0.00013698,3]
[330650886,1719689439572,-687.64,0.00013698,3]
[330650888,1719689439583,-1560.32,0.00013698,3]
[330650890,1719689439593,-1356.04,0.00013698,3]
[330650892,1719689439603,-2015.17,0.00013698,3]
[330650894,1719689439614,-1926.81,0.00013698,3]
[330650896,1719689439624,-500.0,0.00013698,3]
[330650898,1719689439634,-500.0,0.00013698,3]
[330650900,1719689439644,-783.85,0.00013698,3]
[330650902,1719689439654,-1416.95,0.00013698,3]
[330650904,1719689439664,-500.0,0.00013698,3]
[330650906,1719689439675,-1239.43,0.00013698,3]
[330650908,1719689439685,-1461.74,0.00013698,3]
[330650910,1719689439695,-522.29,0.00013698,3]
[330650912,1719689439705,-2742.82,0.00013698,3]
[330650914,1719689439716,-500.0,0.00013698,3]
[330650916,1719689439726,-799.56,0.00013698,3]
[330650918,1719689439738,-2077.92,0.00013698,3]
[330650920,1719689439748,-2155.69,0.00013698,3]
[330650922,1719689439757,-500.0,0.00013698,3]
[330650924,1719689439768,-500.0,0.00013698,3]
[330650926,1719689439779,-1852.55,0.00013698,3]
[330650928,1719689439790,-453.73239135,0.00013698,3]
[330650934,1719689442758,-46.26760865,0.00013698,3]
[330650935,1719689442769,-405.97510933,0.00013698,3]
[330650936,1719689442783,-1683.89489067,0.00013698,3]
[330650937,1719689442794,-500.0,0.00013698,3]
[330650938,1719689442809,-1215.14,0.00013698,3]
[330650939,1719689442820,-1184.51,0.00013698,3]
[330650940,1719689442830,-500.0,0.00013698,3]
[330650941,1719689442841,-960.15,0.00013698,3]
[330650942,1719689442852,-2468.18,0.00013698,3]
[330650943,1719689442862,-1155.06,0.00013698,3]
[330650944,1719689442872,-539.68524803,0.00013698,3]
[330650961,1719689443562,-1445.03475197,0.00013698,3]
[330650963,1719689443573,-1499.59,0.00013698,3]
[330650965,1719689443584,-500.0,0.00013698,3]
[330650967,1719689443594,-742.6,0.00013698,3]
[330650969,1719689443604,-651.53,0.00013698,3]
[330650971,1719689443615,-500.0,0.00013698,3]
[330650973,1719689443626,-1190.86,0.00013698,3]
[330650975,1719689443637,-2167.0,0.00013698,3]
[330650977,1719689443648,-301.99038492,0.00013698,3]
[330650979,1719689443658,-1424.72,0.00013698,3]
[330650980,1719689443668,-1814.53,0.00013698,3]
[330650981,1719689443678,-1209.75,0.00013698,3]
[330650982,1719689443689,-2072.32,0.00013698,3]
[330650983,1719689443699,-1293.19,0.00013698,3]
[330650984,1719689443709,-500.0,0.00013698,3]
[330650985,1719689443720,-596.3,0.00013698,3]
[330650986,1719689443730,-1756.74,0.00013698,3]
[330650987,1719689443740,-2017.21,0.00013698,3]
[330650988,1719689443750,-1090.65,0.00013698,3]
[330650989,1719689443760,-265.40779204,0.00013698,3]
[330650990,1719689443770,-713.34,0.00013698,3]
[330650991,1719689443779,-931.38,0.00013698,3]
[330650992,1719689443791,-500.0,0.00013698,3]
[330650993,1719689443806,-900.74,0.00013698,3]
[330650994,1719689443816,-910.74,0.00013698,3]
[330650995,1719689443825,-1697.27,0.00013698,3]
[330650996,1719689443838,-2256.46,0.00013698,3]
[330650997,1719689443848,-1371.5,0.00013698,3]
[330650998,1719689443858,-1339.31,0.00013698,3]
[330650999,1719689443868,-1333.03,0.00013698,3]
[330651000,1719689443878,-500.0,0.00013698,3]
[330651001,1719689443887,-2322.6,0.00013698,3]
[330651002,1719689443898,-500.0,0.00013698,3]
[330651003,1719689443908,-939.21,0.00013698,3]
[330651004,1719689443918,-1660.38,0.00013698,3]
[330651005,1719689443928,-500.0,0.00013698,3]
[330651006,1719689443939,-550.06,0.00013698,3]
[330651007,1719689443949,-1954.25,0.00013698,3]
[330651008,1719689443959,-2115.94,0.00013698,3]
[330651009,1719689443969,-1046.94,0.00013698,3]
[330651010,1719689443979,-1099.55,0.00013698,3]
[330651011,1719689443989,-500.0,0.00013698,3]
[330651012,1719689444001,-1763.87,0.00013698,3]
[330651013,1719689444012,-500.0,0.00013698,3]
[330651014,1719689444022,-1294.89,0.00013698,3]
[330651015,1719689444033,-941.21,0.00013698,3]
[330651016,1719689444044,-165.12,0.00013699,2]
[330651017,1719689444063,-5200.0,0.000137,5]
[330651018,1719689444073,-2288.8,0.00013707,3]
[330651019,1719689444084,-993.33,0.00013707,3]
[330651020,1719689444095,-511.94,0.00013707,3]
[330651021,1719689444105,-500.0,0.00013707,3]